[Event "Titled Tuesday Blitz December 06 Early 2022"]
[White "Estrada Nieto, Julian"]
[Black "Aradhya, Garg"]
[WhiteFideId "5101018"]
[BlackFideId "25006746"]
[WhiteElo "2511"]
[BlackElo "2747"]
[Result "0-1"]
[Round "07"]
[TimeControl "180+1"]
[Date "2022.12.07"]
[WhiteClock "0:00:01"]
[BlackClock "0:01:32"]

1. e4 {[%clk 0:03:00]}  e5 {[%clk 0:03:00]} 2. Nf3 {[%clk 0:03:01]}  Nc6 {[%clk 0:03:00]} 3. Bb5 {[%clk 0:03:01]}  a6 {[%clk 0:03:00]} 4. Ba4 {[%clk 0:03:02]}  Nf6 {[%clk 0:03:00]} 5. O-O {[%clk 0:03:02]}  Be7 {[%clk 0:03:00]} 6. d3 {[%clk 0:03:00]}  b5 {[%clk 0:03:01]} 7. Bb3 {[%clk 0:03:01]}  O-O {[%clk 0:03:01]} 8. a4 {[%clk 0:03:01]}  Rb8 {[%clk 0:02:58]} 9. axb5 {[%clk 0:02:58]}  axb5 {[%clk 0:02:58]} 10. c3 {[%clk 0:02:57]}  d5 {[%clk 0:02:57]} 11. exd5 {[%clk 0:02:53]}  Nxd5 {[%clk 0:02:58]} 12. Re1 {[%clk 0:02:53]}  Bg4 {[%clk 0:02:54]} 13. h3 {[%clk 0:02:53]}  Bh5 {[%clk 0:02:54]} 14. Nbd2 {[%clk 0:02:44]}  Nf4 {[%clk 0:02:54]} 15. d4 {[%clk 0:02:25]}  Nd3 {[%clk 0:02:50]} 16. Re3 {[%clk 0:02:16]}  Nxc1 {[%clk 0:02:42]} 17. Qxc1 {[%clk 0:02:13]}  exd4 {[%clk 0:02:37]} 18. cxd4 {[%clk 0:02:12]}  Nb4 {[%clk 0:02:37]} 19. Ra7 {[%clk 0:01:34]}  Bd6 {[%clk 0:02:34]} 20. Ne4 {[%clk 0:01:30]}  Bf4 {[%clk 0:02:34]} 21. Qc5 {[%clk 0:01:19]}  Bxe3 {[%clk 0:02:33]} 22. fxe3 {[%clk 0:01:19]}  Bxf3 {[%clk 0:02:32]} 23. gxf3 {[%clk 0:01:19]}  Nd3 {[%clk 0:02:23]} 24. Qxc7 {[%clk 0:01:09]}  Qxc7 {[%clk 0:02:21]} 25. Rxc7 {[%clk 0:01:09]}  Rb6 {[%clk 0:02:14]} 26. Nc5 {[%clk 0:00:56]}  Rg6+ {[%clk 0:01:55]} 27. Kf1 {[%clk 0:00:54]}  Nxc5 {[%clk 0:01:55]} 28. Rxc5 {[%clk 0:00:51]}  Rb8 {[%clk 0:01:53]} 29. Kf2 {[%clk 0:00:50]}  Kf8 {[%clk 0:01:52]} 30. Rc7 {[%clk 0:00:49]}  Rf6 {[%clk 0:01:52]} 31. e4 {[%clk 0:00:48]}  g5 {[%clk 0:01:48]} 32. Ke3 {[%clk 0:00:48]}  h5 {[%clk 0:01:48]} 33. e5 {[%clk 0:00:36]}  Re8 {[%clk 0:01:41]} 34. Rc5 {[%clk 0:00:26]}  Rf5 {[%clk 0:01:41]} 35. Rxb5 {[%clk 0:00:25]}  f6 {[%clk 0:01:41]} 36. Bc2 {[%clk 0:00:20]}  Rf4 {[%clk 0:01:41]} 37. Rd5 {[%clk 0:00:09]}  fxe5 {[%clk 0:01:40]} 38. dxe5 {[%clk 0:00:09]}  Rb4 {[%clk 0:01:40]} 39. b3 {[%clk 0:00:08]}  Rc8 {[%clk 0:01:36]} 40. Kd2 {[%clk 0:00:08]}  Ke7 {[%clk 0:01:35]} 41. Rd3 {[%clk 0:00:05]}  Rb5 {[%clk 0:01:33]} 42. Re3 {[%clk 0:00:05]}  Ke6 {[%clk 0:01:32]} 43. Kd1 {[%clk 0:00:01]}  Rd5+ {[%clk 0:01:32]} 0-1


[Site "https://www.chess.com"]

[Event "Titled Tuesday Blitz December 06 Early 2022"]
[White "Fabris, Alberto"]
[Black "Dushyant Sharma"]
[WhiteFideId "801348"]
[BlackFideId "25065130"]
[WhiteElo "2198"]
[BlackElo "2590"]
[Result "0-1"]
[Round "07"]
[TimeControl "180+1"]
[Date "2022.12.07"]
[WhiteClock "0:00:16"]
[BlackClock "0:01:56"]

1. e4 {[%clk 0:03:00]}  d5 {[%clk 0:02:58]} 2. exd5 {[%clk 0:03:00]}  Nf6 {[%clk 0:02:58]} 3. c4 {[%clk 0:02:58]}  Bg4 {[%clk 0:02:56]} 4. Be2 {[%clk 0:02:56]}  Bxe2 {[%clk 0:02:56]} 5. Nxe2 {[%clk 0:02:54]}  c6 {[%clk 0:02:57]} 6. d4 {[%clk 0:02:49]}  cxd5 {[%clk 0:02:54]} 7. c5 {[%clk 0:02:49]}  Nc6 {[%clk 0:02:54]} 8. Nbc3 {[%clk 0:02:48]}  e6 {[%clk 0:02:54]} 9. O-O {[%clk 0:02:47]}  Be7 {[%clk 0:02:55]} 10. a3 {[%clk 0:02:46]}  a5 {[%clk 0:02:52]} 11. Nb5 {[%clk 0:02:45]}  O-O {[%clk 0:02:52]} 12. Bf4 {[%clk 0:02:44]}  b6 {[%clk 0:02:51]} 13. Nc7 {[%clk 0:02:32]}  Rb8 {[%clk 0:02:46]} 14. Na6 {[%clk 0:02:20]}  Rb7 {[%clk 0:02:46]} 15. b4 {[%clk 0:02:11]}  bxc5 {[%clk 0:02:43]} 16. bxc5 {[%clk 0:02:07]}  Ra7 {[%clk 0:02:33]} 17. Qd3 {[%clk 0:02:04]}  Qc8 {[%clk 0:02:33]} 18. Nc7 {[%clk 0:01:50]}  Rxc7 {[%clk 0:02:33]} 19. Bxc7 {[%clk 0:01:50]}  Qxc7 {[%clk 0:02:33]} 20. Rab1 {[%clk 0:01:46]}  e5 {[%clk 0:02:32]} 21. dxe5 {[%clk 0:01:42]}  Nxe5 {[%clk 0:02:33]} 22. Qb5 {[%clk 0:01:30]}  Qxc5 {[%clk 0:02:33]} 23. Qxc5 {[%clk 0:01:24]}  Bxc5 {[%clk 0:02:34]} 24. Rb5 {[%clk 0:01:23]}  Bxa3 {[%clk 0:02:33]} 25. Rxa5 {[%clk 0:01:22]}  Nc4 {[%clk 0:02:33]} 26. Ra4 {[%clk 0:01:15]}  Bc5 {[%clk 0:02:26]} 27. Nf4 {[%clk 0:01:07]}  Nd2 {[%clk 0:02:24]} 28. Rc1 {[%clk 0:00:59]}  Nde4 {[%clk 0:02:20]} 29. Nd3 {[%clk 0:00:58]}  Bd6 {[%clk 0:02:18]} 30. f3 {[%clk 0:00:50]}  Nd2 {[%clk 0:02:16]} 31. Rc6 {[%clk 0:00:48]}  Nc4 {[%clk 0:02:13]} 32. g3 {[%clk 0:00:38]}  Re8 {[%clk 0:02:10]} 33. Kf2 {[%clk 0:00:36]}  h6 {[%clk 0:02:08]} 34. Raa6 {[%clk 0:00:34]}  Be5 {[%clk 0:02:05]} 35. Nxe5 {[%clk 0:00:23]}  Nxe5 {[%clk 0:02:06]} 36. Rd6 {[%clk 0:00:21]}  Nd3+ {[%clk 0:02:05]} 37. Kg2 {[%clk 0:00:22]}  Re2+ {[%clk 0:02:05]} 38. Kh3 {[%clk 0:00:22]}  Nf2+ {[%clk 0:01:58]} 39. Kg2 {[%clk 0:00:22]}  N2e4+ {[%clk 0:01:57]} 40. Kg1 {[%clk 0:00:16]}  Nxd6 {[%clk 0:01:56]} 0-1


[Site "https://www.chess.com"]

[Event "Titled Tuesday Blitz December 06 Early 2022"]
[White "Fernandez Hernandez, Gerardo"]
[Black "Bashirli, Saadat"]
[WhiteFideId "2207400"]
[BlackFideId "13429990"]
[WhiteElo "2192"]
[BlackElo "1408"]
[Result "0-1"]
[Round "07"]
[TimeControl "180+1"]
[Date "2022.12.07"]
[WhiteClock "0:00:03"]
[BlackClock "0:01:37"]

1. e4 {[%clk 0:02:56]}  c5 {[%clk 0:03:00]} 2. d3 {[%clk 0:02:56]}  g6 {[%clk 0:03:00]} 3. g3 {[%clk 0:02:56]}  Bg7 {[%clk 0:03:00]} 4. Bg2 {[%clk 0:02:55]}  e6 {[%clk 0:03:01]} 5. f4 {[%clk 0:02:53]}  Ne7 {[%clk 0:03:01]} 6. Nf3 {[%clk 0:02:53]}  O-O {[%clk 0:03:02]} 7. O-O {[%clk 0:02:51]}  Nbc6 {[%clk 0:03:02]} 8. c3 {[%clk 0:02:51]}  d5 {[%clk 0:03:02]} 9. e5 {[%clk 0:02:50]}  a6 {[%clk 0:03:00]} 10. d4 {[%clk 0:02:43]}  c4 {[%clk 0:02:57]} 11. Be3 {[%clk 0:02:33]}  b5 {[%clk 0:02:57]} 12. Nbd2 {[%clk 0:02:31]}  b4 {[%clk 0:02:57]} 13. g4 {[%clk 0:02:03]}  Qa5 {[%clk 0:02:55]} 14. Qc2 {[%clk 0:01:56]}  Bd7 {[%clk 0:02:48]} 15. Nh4 {[%clk 0:01:39]}  f5 {[%clk 0:02:38]} 16. exf6 {[%clk 0:01:22]}  Bxf6 {[%clk 0:02:38]} 17. Nhf3 {[%clk 0:01:15]}  Rab8 {[%clk 0:02:20]} 18. Ne5 {[%clk 0:01:13]}  Nxe5 {[%clk 0:02:17]} 19. dxe5 {[%clk 0:01:11]}  Bg7 {[%clk 0:02:16]} 20. Nf3 {[%clk 0:01:00]}  bxc3 {[%clk 0:02:10]} 21. Qxc3 {[%clk 0:00:40]}  Qxc3 {[%clk 0:02:09]} 22. bxc3 {[%clk 0:00:40]}  Nc6 {[%clk 0:02:05]} 23. Nd4 {[%clk 0:00:22]}  Rb2 {[%clk 0:01:58]} 24. Bc1 {[%clk 0:00:10]}  Rb6 {[%clk 0:01:42]} 25. Ba3 {[%clk 0:00:10]}  Rfb8 {[%clk 0:01:40]} 26. Rfd1 {[%clk 0:00:03]}  Nxd4 {[%clk 0:01:37]} 27. Rxd4 {[%clk 0:00:03]}  g5 {[%clk 0:01:37]} 0-1


[Site "https://www.chess.com"]

[Event "Titled Tuesday Blitz December 06 Early 2022"]
[White "Firouzja, Alireza"]
[Black "Durarbayli, Vasif"]
[WhiteFideId "12573981"]
[BlackFideId "13402935"]
[WhiteElo "2904"]
[BlackElo "2576"]
[Result "1-0"]
[Round "07"]
[TimeControl "180+1"]
[Date "2022.12.06"]
[WhiteClock "0:00:29"]
[BlackClock "0:00:03"]

1. d4 {[%clk 0:03:00]}  d5 {[%clk 0:02:59]} 2. c4 {[%clk 0:03:00]}  c6 {[%clk 0:02:59]} 3. Nc3 {[%clk 0:03:00]}  Nf6 {[%clk 0:02:59]} 4. Nf3 {[%clk 0:03:01]}  e6 {[%clk 0:03:00]} 5. Bg5 {[%clk 0:03:01]}  dxc4 {[%clk 0:03:00]} 6. e4 {[%clk 0:03:00]}  b5 {[%clk 0:03:00]} 7. e5 {[%clk 0:02:58]}  h6 {[%clk 0:03:01]} 8. Bh4 {[%clk 0:02:58]}  g5 {[%clk 0:03:02]} 9. Bg3 {[%clk 0:02:58]}  Nh5 {[%clk 0:02:51]} 10. Be2 {[%clk 0:02:58]}  Bb7 {[%clk 0:02:48]} 11. O-O {[%clk 0:02:57]}  Nd7 {[%clk 0:02:48]} 12. Nd2 {[%clk 0:02:56]}  Nxg3 {[%clk 0:02:43]} 13. fxg3 {[%clk 0:02:57]}  Qb6 {[%clk 0:02:41]} 14. Nde4 {[%clk 0:02:51]}  O-O-O {[%clk 0:02:41]} 15. Nd6+ {[%clk 0:02:49]}  Bxd6 {[%clk 0:02:39]} 16. exd6 {[%clk 0:02:50]}  f5 {[%clk 0:02:36]} 17. a4 {[%clk 0:02:41]}  a6 {[%clk 0:02:19]} 18. b3 {[%clk 0:02:40]}  cxb3 {[%clk 0:02:14]} 19. Qxb3 {[%clk 0:02:38]}  Qxd4+ {[%clk 0:02:13]} 20. Kh1 {[%clk 0:02:39]}  Nc5 {[%clk 0:02:13]} 21. Qc2 {[%clk 0:02:34]}  Qxd6 {[%clk 0:01:56]} 22. axb5 {[%clk 0:02:27]}  cxb5 {[%clk 0:01:54]} 23. Rac1 {[%clk 0:01:58]}  Kb8 {[%clk 0:01:43]} 24. Qb2 {[%clk 0:01:51]}  Nd3 {[%clk 0:01:24]} 25. Bxd3 {[%clk 0:01:52]}  Qxd3 {[%clk 0:01:25]} 26. Rf2 {[%clk 0:01:42]}  Rd6 {[%clk 0:01:04]} 27. Nxb5 {[%clk 0:01:32]}  axb5 {[%clk 0:00:27]} 28. Qxh8+ {[%clk 0:01:31]}  Ka7 {[%clk 0:00:28]} 29. Qe5 {[%clk 0:01:25]}  Qd1+ {[%clk 0:00:22]} 30. Rf1 {[%clk 0:01:25]}  Qd5 {[%clk 0:00:22]} 31. Ra1+ {[%clk 0:01:16]}  Kb6 {[%clk 0:00:15]} 32. Qe3+ {[%clk 0:01:15]}  Kc7 {[%clk 0:00:14]} 33. Rg1 {[%clk 0:01:03]}  b4 {[%clk 0:00:13]} 34. h3 {[%clk 0:01:03]}  Qd4 {[%clk 0:00:09]} 35. Qe2 {[%clk 0:00:58]}  Kd7 {[%clk 0:00:05]} 36. Kh2 {[%clk 0:00:39]}  Qd3 {[%clk 0:00:04]} 37. Qh5 {[%clk 0:00:37]}  f4 {[%clk 0:00:04]} 38. Qf7+ {[%clk 0:00:35]}  Kc8 {[%clk 0:00:01]} 39. Rgc1+ {[%clk 0:00:35]}  Rc6 {[%clk 0:00:01]} 40. Qxe6+ {[%clk 0:00:34]}  Kc7 {[%clk 0:00:02]} 41. Qe7+ {[%clk 0:00:33]}  Kc8 {[%clk 0:00:02]} 42. gxf4 {[%clk 0:00:30]}  gxf4 {[%clk 0:00:02]} 43. Qf8+ {[%clk 0:00:30]}  Kc7 {[%clk 0:00:02]} 44. Qxf4+ {[%clk 0:00:29]}  Qd6 {[%clk 0:00:03]} 45. Rxc6+ {[%clk 0:00:29]}  Bxc6 {[%clk 0:00:03]} 46. Ra7+ {[%clk 0:00:29]} 1-0


[Site "https://www.chess.com"]

[Event "Titled Tuesday Blitz December 06 Early 2022"]
[White "Franca, Ricardo Bedin"]
[Black "Bon, Michael"]
[WhiteFideId "2107066"]
[BlackFideId "620696"]
[WhiteElo "2462"]
[BlackElo "2381"]
[Result "0-1"]
[Round "07"]
[TimeControl "180+1"]
[Date "2022.12.07"]
[WhiteClock "0:00:24"]
[BlackClock "0:00:11"]

1. e4 {[%clk 0:03:00]}  c5 {[%clk 0:02:59]} 2. Nf3 {[%clk 0:02:58]}  d6 {[%clk 0:02:59]} 3. d4 {[%clk 0:02:58]}  cxd4 {[%clk 0:03:00]} 4. Nxd4 {[%clk 0:02:59]}  Nf6 {[%clk 0:03:00]} 5. Nc3 {[%clk 0:03:00]}  Nc6 {[%clk 0:03:01]} 6. Bc4 {[%clk 0:02:59]}  Qb6 {[%clk 0:03:00]} 7. Nb3 {[%clk 0:02:59]}  e6 {[%clk 0:03:01]} 8. Bf4 {[%clk 0:02:59]}  Ne5 {[%clk 0:02:23]} 9. Be2 {[%clk 0:02:59]}  Be7 {[%clk 0:02:19]} 10. g4 {[%clk 0:02:55]}  a6 {[%clk 0:02:14]} 11. g5 {[%clk 0:02:55]}  Nfd7 {[%clk 0:02:13]} 12. Be3 {[%clk 0:02:53]}  Qc7 {[%clk 0:02:13]} 13. Qd4 {[%clk 0:02:53]}  O-O {[%clk 0:02:08]} 14. f4 {[%clk 0:02:52]}  Nc6 {[%clk 0:02:07]} 15. Qd2 {[%clk 0:02:52]}  b5 {[%clk 0:02:07]} 16. h4 {[%clk 0:02:42]}  Nb6 {[%clk 0:01:41]} 17. h5 {[%clk 0:02:30]}  b4 {[%clk 0:01:32]} 18. Nd1 {[%clk 0:02:22]}  d5 {[%clk 0:01:32]} 19. e5 {[%clk 0:02:21]}  Nc4 {[%clk 0:01:32]} 20. Qd3 {[%clk 0:02:15]}  Nxe3 {[%clk 0:01:31]} 21. Nxe3 {[%clk 0:02:14]}  d4 {[%clk 0:01:25]} 22. Ng4 {[%clk 0:02:09]}  Kh8 {[%clk 0:01:08]} 23. O-O-O {[%clk 0:01:56]}  a5 {[%clk 0:01:05]} 24. Nxd4 {[%clk 0:01:54]}  Nxd4 {[%clk 0:00:54]} 25. Qxd4 {[%clk 0:01:54]}  Bb7 {[%clk 0:00:51]} 26. Rh3 {[%clk 0:01:46]}  Rac8 {[%clk 0:00:50]} 27. Bd3 {[%clk 0:01:42]}  Rfd8 {[%clk 0:00:48]} 28. Qf2 {[%clk 0:01:40]}  a4 {[%clk 0:00:41]} 29. Kb1 {[%clk 0:01:24]}  a3 {[%clk 0:00:41]} 30. f5 {[%clk 0:01:00]}  Bxg5 {[%clk 0:00:26]} 31. h6 {[%clk 0:01:01]}  g6 {[%clk 0:00:22]} 32. fxg6 {[%clk 0:00:58]}  hxg6 {[%clk 0:00:23]} 33. h7 {[%clk 0:00:50]}  axb2 {[%clk 0:00:22]} 34. Nh6 {[%clk 0:00:44]}  Rd7 {[%clk 0:00:19]} 35. Qg3 {[%clk 0:00:38]}  Bd5 {[%clk 0:00:17]} 36. Qxg5 {[%clk 0:00:29]}  Bxa2+ {[%clk 0:00:16]} 37. Kxb2 {[%clk 0:00:30]}  Qc3+ {[%clk 0:00:15]} 38. Kc1 {[%clk 0:00:30]}  Qa1+ {[%clk 0:00:13]} 39. Kd2 {[%clk 0:00:30]}  Rxc2+ {[%clk 0:00:12]} 40. Ke3 {[%clk 0:00:24]}  Qd4+ {[%clk 0:00:11]} 41. Kf3 {[%clk 0:00:23]}  Qf2+ {[%clk 0:00:11]} 42. Kg4 {[%clk 0:00:24]}  Rd4+ {[%clk 0:00:11]} 0-1


[Site "https://www.chess.com"]

[Event "Titled Tuesday Blitz December 06 Early 2022"]
[White "Gabuzyan, Hovhannes"]
[Black "Agasarov, Benik"]
[WhiteFideId "13303732"]
[BlackFideId "13314823"]
[WhiteElo "2486"]
[BlackElo "2179"]
[Result "1-0"]
[Round "07"]
[TimeControl "180+1"]
[Date "2022.12.06"]
[WhiteClock "0:00:32"]
[BlackClock "0:00:01"]

1. e4 {[%clk 0:03:00]}  e5 {[%clk 0:02:57]} 2. Nf3 {[%clk 0:03:00]}  Nc6 {[%clk 0:02:57]} 3. d4 {[%clk 0:03:01]}  exd4 {[%clk 0:02:51]} 4. Nxd4 {[%clk 0:03:02]}  Nf6 {[%clk 0:02:51]} 5. Nxc6 {[%clk 0:03:02]}  bxc6 {[%clk 0:02:52]} 6. e5 {[%clk 0:03:02]}  Qe7 {[%clk 0:02:51]} 7. Qe2 {[%clk 0:03:02]}  Nd5 {[%clk 0:02:50]} 8. h4 {[%clk 0:03:03]}  d6 {[%clk 0:02:48]} 9. c4 {[%clk 0:03:00]}  Nb6 {[%clk 0:02:47]} 10. exd6 {[%clk 0:03:00]}  cxd6 {[%clk 0:02:47]} 11. Nc3 {[%clk 0:02:58]}  Be6 {[%clk 0:02:42]} 12. b3 {[%clk 0:02:51]}  g6 {[%clk 0:02:42]} 13. Bg5 {[%clk 0:02:50]}  f6 {[%clk 0:02:36]} 14. Bf4 {[%clk 0:02:49]}  Bg7 {[%clk 0:02:35]} 15. Rd1 {[%clk 0:02:49]}  O-O-O {[%clk 0:02:32]} 16. Ne4 {[%clk 0:02:35]}  d5 {[%clk 0:01:55]} 17. cxd5 {[%clk 0:02:32]}  Bxd5 {[%clk 0:01:09]} 18. Qa6+ {[%clk 0:02:14]}  Kd7 {[%clk 0:00:51]} 19. Bd3 {[%clk 0:02:07]}  Ke8 {[%clk 0:00:37]} 20. O-O {[%clk 0:02:04]}  Bxe4 {[%clk 0:00:35]} 21. Rfe1 {[%clk 0:01:46]}  f5 {[%clk 0:00:28]} 22. Bg5 {[%clk 0:01:45]}  Bf6 {[%clk 0:00:20]} 23. Bxf6 {[%clk 0:01:40]}  Qxf6 {[%clk 0:00:21]} 24. Bxe4 {[%clk 0:01:30]}  fxe4 {[%clk 0:00:20]} 25. Rxe4+ {[%clk 0:01:29]}  Kf8 {[%clk 0:00:17]} 26. Rxd8+ {[%clk 0:01:22]}  Qxd8 {[%clk 0:00:18]} 27. Qxa7 {[%clk 0:01:22]}  Nd5 {[%clk 0:00:09]} 28. Qc5+ {[%clk 0:00:54]}  Kg7 {[%clk 0:00:09]} 29. Qxc6 {[%clk 0:00:51]}  Nf6 {[%clk 0:00:09]} 30. Qb7+ {[%clk 0:00:49]}  Kh6 {[%clk 0:00:09]} 31. Rf4 {[%clk 0:00:46]}  Re8 {[%clk 0:00:09]} 32. Qf3 {[%clk 0:00:43]}  Re1+ {[%clk 0:00:08]} 33. Kh2 {[%clk 0:00:43]}  Qd6 {[%clk 0:00:08]} 34. g3 {[%clk 0:00:42]}  Re6 {[%clk 0:00:04]} 35. a4 {[%clk 0:00:37]}  Kg7 {[%clk 0:00:04]} 36. a5 {[%clk 0:00:37]}  Qa6 {[%clk 0:00:03]} 37. b4 {[%clk 0:00:35]}  Re1 {[%clk 0:00:02]} 38. b5 {[%clk 0:00:32]}  Qxb5 {[%clk 0:00:02]} 39. Rxf6 {[%clk 0:00:32]}  Qf1 {[%clk 0:00:01]} 40. Rf7+ {[%clk 0:00:32]}  Kh6 {[%clk 0:00:01]} 41. Qf4+ {[%clk 0:00:32]} 1-0


[Site "https://www.chess.com"]

[Event "Titled Tuesday Blitz December 06 Early 2022"]
[White "Gheorghiu, Calin"]
[Black "Ramirez Vido, Robert Yorisan"]
[WhiteFideId "1200305"]
[BlackFideId "3513823"]
[WhiteElo "2490"]
[BlackElo "2365"]
[Result "1-0"]
[Round "07"]
[TimeControl "180+1"]
[Date "2022.12.07"]
[WhiteClock "0:01:51"]
[BlackClock "0:00:03"]

1. e4 {[%clk 0:03:00]}  d6 {[%clk 0:02:59]} 2. d4 {[%clk 0:03:00]}  Nf6 {[%clk 0:03:00]} 3. Nc3 {[%clk 0:02:59]}  g6 {[%clk 0:03:00]} 4. Be3 {[%clk 0:02:54]}  c6 {[%clk 0:03:00]} 5. h3 {[%clk 0:02:53]}  b5 {[%clk 0:02:57]} 6. Bd3 {[%clk 0:02:51]}  Bg7 {[%clk 0:02:56]} 7. Nf3 {[%clk 0:02:48]}  O-O {[%clk 0:02:55]} 8. Ne2 {[%clk 0:02:47]}  Nbd7 {[%clk 0:02:54]} 9. O-O {[%clk 0:02:46]}  e5 {[%clk 0:02:54]} 10. c3 {[%clk 0:02:45]}  d5 {[%clk 0:02:54]} 11. Ng3 {[%clk 0:02:37]}  Qc7 {[%clk 0:02:36]} 12. dxe5 {[%clk 0:02:34]}  Nxe5 {[%clk 0:02:35]} 13. Nxe5 {[%clk 0:02:34]}  Qxe5 {[%clk 0:02:36]} 14. f4 {[%clk 0:02:35]}  Qc7 {[%clk 0:02:34]} 15. e5 {[%clk 0:02:31]}  Nd7 {[%clk 0:02:21]} 16. a4 {[%clk 0:02:31]}  bxa4 {[%clk 0:02:05]} 17. Rxa4 {[%clk 0:02:31]}  Nb6 {[%clk 0:01:53]} 18. Ra1 {[%clk 0:02:27]}  c5 {[%clk 0:01:50]} 19. Qf3 {[%clk 0:02:13]}  Bb7 {[%clk 0:01:48]} 20. Qf2 {[%clk 0:02:11]}  Nd7 {[%clk 0:00:58]} 21. h4 {[%clk 0:02:09]}  Qc6 {[%clk 0:00:46]} 22. h5 {[%clk 0:02:07]}  a6 {[%clk 0:00:30]} 23. Rad1 {[%clk 0:02:04]}  Rac8 {[%clk 0:00:25]} 24. Bb1 {[%clk 0:02:00]}  c4 {[%clk 0:00:20]} 25. Bd4 {[%clk 0:01:59]}  Nc5 {[%clk 0:00:19]} 26. f5 {[%clk 0:01:59]}  Nb3 {[%clk 0:00:05]} 27. f6 {[%clk 0:01:54]}  Bh6 {[%clk 0:00:04]} 28. hxg6 {[%clk 0:01:54]}  hxg6 {[%clk 0:00:03]} 29. Be3 {[%clk 0:01:54]}  Bxe3 {[%clk 0:00:02]} 30. Qxe3 {[%clk 0:01:53]}  Qc5 {[%clk 0:00:03]} 31. Rd4 {[%clk 0:01:51]} 1-0


[Site "https://www.chess.com"]

[Event "Titled Tuesday Blitz December 06 Early 2022"]
[White "Ghosh, Chanchal Kumer"]
[Black "Shubenkova, Veronika"]
[WhiteFideId "10201858"]
[BlackFideId "44124040"]
[WhiteElo "2058"]
[BlackElo "2027"]
[Result "1/2-1/2"]
[Round "07"]
[TimeControl "180+1"]
[Date "2022.12.07"]
[WhiteClock "0:00:08"]
[BlackClock "0:00:08"]

1. e4 {[%clk 0:03:00]}  c5 {[%clk 0:02:57]} 2. Nf3 {[%clk 0:03:01]}  e6 {[%clk 0:02:57]} 3. d4 {[%clk 0:03:02]}  cxd4 {[%clk 0:02:57]} 4. Nxd4 {[%clk 0:03:03]}  a6 {[%clk 0:02:57]} 5. Nc3 {[%clk 0:03:02]}  Nc6 {[%clk 0:02:57]} 6. Be3 {[%clk 0:03:00]}  Qc7 {[%clk 0:02:56]} 7. Be2 {[%clk 0:02:55]}  Nf6 {[%clk 0:02:56]} 8. O-O {[%clk 0:02:54]}  Be7 {[%clk 0:02:56]} 9. f4 {[%clk 0:02:53]}  d6 {[%clk 0:02:56]} 10. a4 {[%clk 0:02:50]}  b6 {[%clk 0:02:55]} 11. Nb3 {[%clk 0:02:38]}  Bb7 {[%clk 0:02:54]} 12. Bd3 {[%clk 0:02:37]}  Nb4 {[%clk 0:02:53]} 13. Qf3 {[%clk 0:02:29]}  d5 {[%clk 0:02:50]} 14. Rae1 {[%clk 0:01:42]}  dxe4 {[%clk 0:02:42]} 15. Nxe4 {[%clk 0:01:40]}  Nxd3 {[%clk 0:02:40]} 16. cxd3 {[%clk 0:01:39]}  Bd5 {[%clk 0:02:35]} 17. Rc1 {[%clk 0:01:30]}  Qb7 {[%clk 0:02:33]} 18. Nbd2 {[%clk 0:01:27]}  O-O {[%clk 0:02:29]} 19. g4 {[%clk 0:01:25]}  Bb4 {[%clk 0:02:27]} 20. Rfe1 {[%clk 0:01:12]}  Rfd8 {[%clk 0:02:15]} 21. g5 {[%clk 0:01:05]}  Bxe4 {[%clk 0:02:08]} 22. dxe4 {[%clk 0:01:06]}  Bxd2 {[%clk 0:02:07]} 23. Bxd2 {[%clk 0:01:03]}  Rxd2 {[%clk 0:00:34]} 24. gxf6 {[%clk 0:01:02]}  gxf6 {[%clk 0:00:33]} 25. Re2 {[%clk 0:00:54]}  Rxe2 {[%clk 0:00:33]} 26. Qxe2 {[%clk 0:00:55]}  Kh8 {[%clk 0:00:33]} 27. Kf2 {[%clk 0:00:51]}  Rg8 {[%clk 0:00:34]} 28. Rg1 {[%clk 0:00:37]}  Rxg1 {[%clk 0:00:33]} 29. Kxg1 {[%clk 0:00:38]}  b5 {[%clk 0:00:34]} 30. a5 {[%clk 0:00:35]}  Qa7+ {[%clk 0:00:33]} 31. Kg2 {[%clk 0:00:35]}  Qc7 {[%clk 0:00:32]} 32. Qd2 {[%clk 0:00:31]}  b4 {[%clk 0:00:28]} 33. h4 {[%clk 0:00:24]}  b3 {[%clk 0:00:27]} 34. Kg3 {[%clk 0:00:21]}  Qc2 {[%clk 0:00:25]} 35. Qd4 {[%clk 0:00:20]}  Kg7 {[%clk 0:00:24]} 36. h5 {[%clk 0:00:19]}  h6 {[%clk 0:00:24]} 37. e5 {[%clk 0:00:13]}  f5 {[%clk 0:00:20]} 38. Qd8 {[%clk 0:00:13]}  Qc1 {[%clk 0:00:19]} 39. Qf6+ {[%clk 0:00:12]}  Kg8 {[%clk 0:00:19]} 40. Qxh6 {[%clk 0:00:12]}  Qe3+ {[%clk 0:00:18]} 41. Kg2 {[%clk 0:00:12]}  Qe2+ {[%clk 0:00:18]} 42. Kg3 {[%clk 0:00:12]}  Qe1+ {[%clk 0:00:18]} 43. Kf3 {[%clk 0:00:12]}  Qd1+ {[%clk 0:00:18]} 44. Ke3 {[%clk 0:00:12]}  Qc1+ {[%clk 0:00:18]} 45. Kd3 {[%clk 0:00:12]}  Qc2+ {[%clk 0:00:18]} 46. Kd4 {[%clk 0:00:12]}  Qxb2+ {[%clk 0:00:18]} 47. Kc5 {[%clk 0:00:11]}  Qc3+ {[%clk 0:00:17]} 48. Kb6 {[%clk 0:00:12]}  b2 {[%clk 0:00:15]} 49. Qg5+ {[%clk 0:00:12]}  Kf8 {[%clk 0:00:14]} 50. Qd8+ {[%clk 0:00:10]}  Kg7 {[%clk 0:00:14]} 51. h6+ {[%clk 0:00:10]}  Kxh6 {[%clk 0:00:13]} 52. Qh8+ {[%clk 0:00:10]}  Kg6 {[%clk 0:00:13]} 53. Qg8+ {[%clk 0:00:11]}  Kh6 {[%clk 0:00:12]} 54. Qh8+ {[%clk 0:00:11]}  Kg6 {[%clk 0:00:12]} 55. Qf6+ {[%clk 0:00:10]}  Kh7 {[%clk 0:00:11]} 56. Qxf7+ {[%clk 0:00:11]}  Kh8 {[%clk 0:00:11]} 57. Qf6+ {[%clk 0:00:11]}  Kh7 {[%clk 0:00:10]} 58. Qf7+ {[%clk 0:00:11]}  Kh6 {[%clk 0:00:10]} 59. Qf6+ {[%clk 0:00:09]}  Kh7 {[%clk 0:00:09]} 60. Qh4+ {[%clk 0:00:07]}  Kg7 {[%clk 0:00:09]} 61. Qf6+ {[%clk 0:00:08]}  Kh7 {[%clk 0:00:08]} 1/2-1/2


[Site "https://www.chess.com"]